[Event "*** Titled Tuesday Blitz"]
[Site "Chess.com"]
[Date "2018.11.06"]
[Round "7"]
[White "Atanejhad"]
[Black "Bad4life"]
[Result "1-0"]
[WhiteElo "2246"]
[BlackElo "2275"]
[TimeControl "180+2"]
[EndTime "14:32:15 PST"]
[Termination "Atanejhad won by resignation"]

1. d4 {[%clk 0:03:01.9]} 1... Nf6 {[%clk 0:02:58]} 2. c4 {[%clk 0:03:02.9]} 2...
g6 {[%clk 0:02:58.4]} 3. Nf3 {[%clk 0:03:04]} 3... Bg7 {[%clk 0:03:00.1]} 4. Nc3
{[%clk 0:03:05.2]} 4... O-O {[%clk 0:03:00.6]} 5. e4 {[%clk 0:03:06.1]} 5... d6
{[%clk 0:03:01.8]} 6. Be2 {[%clk 0:03:07]} 6... Nbd7 {[%clk 0:03:01.8]} 7. O-O
{[%clk 0:03:07.8]} 7... e5 {[%clk 0:03:03.2]} 8. Be3 {[%clk 0:03:09]} 8... Ng4
{[%clk 0:02:59.3]} 9. Bg5 {[%clk 0:03:09.1]} 9... f6 {[%clk 0:03:00.9]} 10. Bh4
{[%clk 0:03:10.5]} 10... g5 {[%clk 0:03:01.4]} 11. Bg3 {[%clk 0:03:10]} 11...
Nh6 {[%clk 0:03:02.4]} 12. d5 {[%clk 0:02:53.7]} 12... a5 {[%clk 0:03:02.8]} 13.
Nd2 {[%clk 0:02:54.1]} 13... Nc5 {[%clk 0:03:04.1]} 14. b3 {[%clk 0:02:51]}
14... f5 {[%clk 0:03:05.3]} 15. f3 {[%clk 0:02:51.8]} 15... f4 {[%clk
0:03:03.9]} 16. Bf2 {[%clk 0:02:52.6]} 16... Kh8 {[%clk 0:02:55.2]} 17. a3
{[%clk 0:02:53.4]} 17... Bf6 {[%clk 0:02:55.3]} 18. b4 {[%clk 0:02:54.5]} 18...
axb4 {[%clk 0:02:52.7]} 19. axb4 {[%clk 0:02:55.4]} 19... Rxa1 {[%clk
0:02:54.6]} 20. Qxa1 {[%clk 0:02:56.7]} 20... Na6 {[%clk 0:02:56.2]} 21. b5
{[%clk 0:02:52.2]} 21... Nc5 {[%clk 0:02:56.6]} 22. Na4 {[%clk 0:02:52.7]} 22...
Nxa4 {[%clk 0:02:50]} 23. Qxa4 {[%clk 0:02:52.7]} 23... g4 {[%clk 0:02:51.6]}
24. c5 {[%clk 0:02:42.7]} 24... Bh4 {[%clk 0:02:51.6]} 25. Bc4 {[%clk
0:02:21.1]} 25... Bxf2+ {[%clk 0:02:51]} 26. Rxf2 {[%clk 0:02:23]} 26... dxc5
{[%clk 0:02:52]} 27. Nf1 {[%clk 0:02:22.8]} 27... b6 {[%clk 0:02:51]} 28. Ra2
{[%clk 0:02:22.6]} 28... gxf3 {[%clk 0:02:50.9]} 29. gxf3 {[%clk 0:02:22.2]}
29... Rg8+ {[%clk 0:02:52.3]} 30. Rg2 {[%clk 0:02:19.1]} 30... Bh3 {[%clk
0:02:53.4]} 31. Rxg8+ {[%clk 0:02:16.6]} 31... Qxg8+ {[%clk 0:02:55.3]} 32. Kf2
{[%clk 0:02:17.3]} 32... Qg2+ {[%clk 0:02:56.4]} 33. Ke1 {[%clk 0:02:18.7]}
33... Qxf3 {[%clk 0:02:51.6]} 34. Qa8+ {[%clk 0:02:19]} 34... Ng8 {[%clk
0:02:52.3]} 35. d6 {[%clk 0:02:20.3]} 35... Qxe4+ {[%clk 0:02:46.7]} 36. Qxe4
{[%clk 0:02:20.3]} 36... cxd6 {[%clk 0:02:26.2]} 37. Qa8 {[%clk 0:02:17.5]} 1-0

[Event "*** Titled Tuesday Blitz"]
[Site "Chess.com"]
[Date "2018.11.06"]
[Round "7"]
[White "Jbd735"]
[Black "jacky72"]
[Result "0-1"]
[WhiteElo "2496"]
[BlackElo "2704"]
[TimeControl "180+2"]
[EndTime "14:33:39 PST"]
[Termination "jacky72 won on time"]

1. e4 {[%clk 0:03:01.9]} 1... e5 {[%clk 0:03:00.6]} 2. Nf3 {[%clk 0:03:02.6]}
2... Nc6 {[%clk 0:03:01.7]} 3. Bb5 {[%clk 0:03:03.6]} 3... a6 {[%clk 0:03:02.7]}
4. Ba4 {[%clk 0:03:04.5]} 4... d6 {[%clk 0:03:04.6]} 5. c3 {[%clk 0:02:53.2]}
5... Bd7 {[%clk 0:03:05.8]} 6. O-O {[%clk 0:02:52.2]} 6... g6 {[%clk 0:03:07.2]}
7. Bc2 {[%clk 0:02:51]} 7... Bg7 {[%clk 0:03:08.5]} 8. h3 {[%clk 0:02:38]} 8...
Nf6 {[%clk 0:03:09.8]} 9. d4 {[%clk 0:02:36.4]} 9... O-O {[%clk 0:03:11.1]} 10.
d5 {[%clk 0:02:32.6]} 10... Ne7 {[%clk 0:03:11.7]} 11. c4 {[%clk 0:02:32.4]}
11... h6 {[%clk 0:03:11.1]} 12. Nc3 {[%clk 0:02:31.3]} 12... Ne8 {[%clk
0:03:11.3]} 13. Rb1 {[%clk 0:02:13.2]} 13... f5 {[%clk 0:03:10.7]} 14. exf5
{[%clk 0:02:12.9]} 14... gxf5 {[%clk 0:03:08.8]} 15. Re1 {[%clk 0:01:57.7]}
15... Ng6 {[%clk 0:03:08.6]} 16. b4 {[%clk 0:01:38.6]} 16... Nf6 {[%clk
0:03:08.9]} 17. c5 {[%clk 0:01:25.8]} 17... Kh8 {[%clk 0:03:02.4]} 18. Nd2
{[%clk 0:01:03.6]} 18... Rg8 {[%clk 0:02:55.4]} 19. Nc4 {[%clk 0:01:00.8]} 19...
Bf8 {[%clk 0:02:56.2]} 20. cxd6 {[%clk 0:00:51]} 20... cxd6 {[%clk 0:02:57]} 21.
Kh1 {[%clk 0:00:39.9]} 21... Rc8 {[%clk 0:02:58.3]} 22. Qe2 {[%clk 0:00:33.7]}
22... b5 {[%clk 0:02:58.8]} 23. Ne3 {[%clk 0:00:24.7]} 23... Rxc3 {[%clk
0:02:58.5]} 24. Nxf5 {[%clk 0:00:23.9]} 24... Qc8 {[%clk 0:02:52.9]} 25. Ne3
{[%clk 0:00:13.7]} 25... Nf4 {[%clk 0:02:52.6]} 26. Qf3 {[%clk 0:00:13.3]} 26...
Rxg2 {[%clk 0:02:51.5]} 27. Rb2 {[%clk 0:00:04.7]} 27... Bxh3 {[%clk 0:02:48.9]}
28. Rg1 {[%clk 0:00:03]} 28... Ng4 {[%clk 0:02:42.2]} 0-1

[Event "*** Titled Tuesday Blitz"]
[Site "Chess.com"]
[Date "2018.11.06"]
[Round "7"]
[White "norwaytoadog"]
[Black "HanSchut"]
[Result "0-1"]
[WhiteElo "2148"]
[BlackElo "2302"]
[TimeControl "180+2"]
[EndTime "14:34:33 PST"]
[Termination "HanSchut won by resignation"]

1. e4 {[%clk 0:03:01.8]} 1... c5 {[%clk 0:02:58.4]} 2. Nf3 {[%clk 0:02:48.7]}
2... d6 {[%clk 0:02:58.3]} 3. Bb5+ {[%clk 0:02:49.2]} 3... Nd7 {[%clk
0:02:58.5]} 4. d4 {[%clk 0:02:44.6]} 4... cxd4 {[%clk 0:02:57.5]} 5. Qxd4 {[%clk
0:02:45.1]} 5... Nf6 {[%clk 0:02:54.2]} 6. c4 {[%clk 0:02:43.6]} 6... g6 {[%clk
0:02:43.9]} 7. Nc3 {[%clk 0:02:44.1]} 7... Bg7 {[%clk 0:02:43.8]} 8. O-O {[%clk
0:02:38.6]} 8... O-O {[%clk 0:02:43.8]} 9. Bxd7 {[%clk 0:02:24.7]} 9... Bxd7
{[%clk 0:02:39.8]} 10. Bg5 {[%clk 0:02:20.8]} 10... Bc6 {[%clk 0:02:39.6]} 11.
Qd3 {[%clk 0:02:18.1]} 11... Qa5 {[%clk 0:02:26.2]} 12. Bd2 {[%clk 0:02:15.6]}
12... Qh5 {[%clk 0:02:23.2]} 13. Nd4 {[%clk 0:01:55.7]} 13... Ng4 {[%clk
0:02:16]} 14. h3 {[%clk 0:01:53]} 14... Ne5 {[%clk 0:02:13.6]} 15. Qc2 {[%clk
0:01:32.9]} 15... Nxc4 {[%clk 0:02:08.2]} 16. Nxc6 {[%clk 0:01:26]} 16... bxc6
{[%clk 0:02:09.7]} 17. Bc1 {[%clk 0:01:16.4]} 17... Rab8 {[%clk 0:01:58.5]} 18.
b3 {[%clk 0:01:09]} 18... Qe5 {[%clk 0:01:51.2]} 19. Na4 {[%clk 0:00:38.5]}
19... Qxa1 {[%clk 0:01:43.3]} 20. bxc4 {[%clk 0:00:34.3]} 20... Rb1 {[%clk
0:01:21.3]} 21. Kh2 {[%clk 0:00:22.8]} 21... Be5+ {[%clk 0:01:17.2]} 22. f4
{[%clk 0:00:18.8]} 22... Bxf4+ {[%clk 0:01:13.6]} 23. Bxf4 {[%clk 0:00:17.6]}
23... Rxf1 {[%clk 0:01:14.1]} 24. Nc3 {[%clk 0:00:16.5]} 24... Rxf4 {[%clk
0:01:11.2]} 0-1

[Event "*** Titled Tuesday Blitz"]
[Site "Chess.com"]
[Date "2018.11.06"]
[Round "7"]
[White "nubair1198"]
[Black "DanielNaroditsky"]
[Result "1-0"]
[WhiteElo "2589"]
[BlackElo "2952"]
[TimeControl "180+2"]
[EndTime "14:34:34 PST"]
[Termination "nubair1198 won by checkmate"]

1. d4 {[%clk 0:02:45]} 1... Nf6 {[%clk 0:02:53.8]} 2. c4 {[%clk 0:02:44.5]} 2...
g6 {[%clk 0:02:55.3]} 3. Nc3 {[%clk 0:02:43.6]} 3... Bg7 {[%clk 0:02:57]} 4. e4
{[%clk 0:02:41.9]} 4... d6 {[%clk 0:02:58.9]} 5. Nf3 {[%clk 0:02:41.1]} 5... O-O
{[%clk 0:03:00.3]} 6. Be2 {[%clk 0:02:39.1]} 6... e5 {[%clk 0:03:02]} 7. O-O
{[%clk 0:02:39]} 7... exd4 {[%clk 0:03:03.4]} 8. Nxd4 {[%clk 0:02:39.8]} 8...
Re8 {[%clk 0:03:05.3]} 9. f3 {[%clk 0:02:41.3]} 9... c6 {[%clk 0:03:06.8]} 10.
Kh1 {[%clk 0:02:21.3]} 10... Nh5 {[%clk 0:03:06.1]} 11. g4 {[%clk 0:02:13.2]}
11... Nf6 {[%clk 0:03:02.8]} 12. Bf4 {[%clk 0:02:14.5]} 12... h5 {[%clk
0:02:59.4]} 13. Nf5 {[%clk 0:01:51.8]} 13... gxf5 {[%clk 0:02:57.6]} 14. gxf5
{[%clk 0:01:47.1]} 14... Kh7 {[%clk 0:02:53.4]} 15. Rg1 {[%clk 0:01:36.8]} 15...
Rg8 {[%clk 0:02:54.5]} 16. Qe1 {[%clk 0:01:15]} 16... Nbd7 {[%clk 0:02:54.9]}
17. Qh4 {[%clk 0:01:09]} 17... Bh6 {[%clk 0:02:39.9]} 18. Rxg8 {[%clk
0:00:57.7]} 18... Qxg8 {[%clk 0:02:37.6]} 19. Bxh6 {[%clk 0:00:58.9]} 19... Kxh6
{[%clk 0:02:38.9]} 20. Rg1 {[%clk 0:00:54]} 20... Qf8 {[%clk 0:02:39.3]} 21. e5
{[%clk 0:00:39.2]} 21... Ng8 {[%clk 0:02:12]} 22. f4 {[%clk 0:00:20.3]} 22...
Kh7 {[%clk 0:02:13]} 23. Qxh5+ {[%clk 0:00:17.8]} 23... Nh6 {[%clk 0:02:14.1]}
24. Ne4 {[%clk 0:00:19.1]} 24... dxe5 {[%clk 0:02:00.1]} 25. fxe5 {[%clk
0:00:21]} 25... Kh8 {[%clk 0:01:55.7]} 26. f6 {[%clk 0:00:14.6]} 26... Nxe5
{[%clk 0:01:52.1]} 27. Rg7 {[%clk 0:00:15.4]} 27... Qxg7 {[%clk 0:01:51]} 28.
fxg7+ {[%clk 0:00:17.3]} 28... Kxg7 {[%clk 0:01:52.9]} 29. Qxe5+ {[%clk
0:00:18.7]} 29... Kg8 {[%clk 0:01:54.1]} 30. Nf6+ {[%clk 0:00:19.5]} 30... Kf8
{[%clk 0:01:55.7]} 31. Nh7+ {[%clk 0:00:20.4]} 31... Kg8 {[%clk 0:01:56.3]} 32.
Nf6+ {[%clk 0:00:22.3]} 32... Kf8 {[%clk 0:01:57.8]} 33. Bd3 {[%clk 0:00:22.5]}
33... Be6 {[%clk 0:01:58.9]} 34. Qd6+ {[%clk 0:00:22.8]} 34... Kg7 {[%clk
0:02:00.3]} 35. Qe5 {[%clk 0:00:23.6]} 35... Kf8 {[%clk 0:02:01.5]} 36. Nh5
{[%clk 0:00:25.2]} 36... Ng8 {[%clk 0:02:01.6]} 37. Qg7+ {[%clk 0:00:26]} 37...
Ke7 {[%clk 0:02:03.2]} 38. Qg5+ {[%clk 0:00:26.7]} 38... Kf8 {[%clk 0:02:02.9]}
39. Nf6 {[%clk 0:00:27.5]} 39... Nxf6 {[%clk 0:02:01.7]} 40. Qxf6 {[%clk
0:00:29.4]} 40... Re8 {[%clk 0:02:02.7]} 41. b3 {[%clk 0:00:29.6]} 41... Re7
{[%clk 0:02:04.2]} 42. Qh8# {[%clk 0:00:30.2]} 1-0

[Event "*** Titled Tuesday Blitz"]
[Site "Chess.com"]
[Date "2018.11.06"]
[Round "7"]
[White "Quiet_Desperation"]
[Black "DiogenesSinopeus"]
[Result "1-0"]
[WhiteElo "2345"]
[BlackElo "2394"]
[TimeControl "180+2"]
[EndTime "14:34:42 PST"]
[Termination "Quiet_Desperation won on time"]

1. e4 {[%clk 0:03:01.9]} 1... e5 {[%clk 0:03:00.7]} 2. Nf3 {[%clk 0:03:03.3]}
2... Nc6 {[%clk 0:03:01.9]} 3. Bc4 {[%clk 0:03:04.9]} 3... Nf6 {[%clk
0:03:02.5]} 4. d4 {[%clk 0:03:03.1]} 4... exd4 {[%clk 0:03:04.4]} 5. e5 {[%clk
0:02:59.6]} 5... Ng4 {[%clk 0:03:05.5]} 6. Bf4 {[%clk 0:02:57.8]} 6... Qe7
{[%clk 0:03:02.2]} 7. O-O {[%clk 0:02:56.2]} 7... Qc5 {[%clk 0:01:20.5]} 8.
Bxf7+ {[%clk 0:02:47.4]} 8... Kxf7 {[%clk 0:01:19.9]} 9. Ng5+ {[%clk 0:02:48.6]}
9... Kg8 {[%clk 0:01:19.3]} 10. Qxg4 {[%clk 0:02:49.7]} 10... d6 {[%clk
0:01:14.6]} 11. e6 {[%clk 0:02:47.4]} 11... Ne5 {[%clk 0:01:07.8]} 12. Bxe5
{[%clk 0:02:43.5]} 12... Qxe5 {[%clk 0:01:07.1]} 13. f4 {[%clk 0:02:40]} 13...
Qe3+ {[%clk 0:01:03.8]} 14. Kh1 {[%clk 0:02:40.5]} 14... h6 {[%clk 0:01:05.4]}
15. Qf5 {[%clk 0:02:30.8]} 15... hxg5 {[%clk 0:00:34.2]} 16. Qf7+ {[%clk
0:02:31.6]} 16... Kh7 {[%clk 0:00:35.8]} 17. f5 {[%clk 0:02:22.8]} 17... Qe5
{[%clk 0:00:10.7]} 18. Nd2 {[%clk 0:02:00.3]} 18... Qf6 {[%clk 0:00:11.2]} 19.
Ne4 {[%clk 0:01:37.8]} 19... Qxf7 {[%clk 0:00:09.1]} 20. Nxg5+ {[%clk
0:01:38.7]} 20... Kh6 {[%clk 0:00:08.4]} 21. Nxf7+ {[%clk 0:01:39]} 21... Kh5
{[%clk 0:00:09.5]} 22. Nxh8 {[%clk 0:01:36.5]} 22... Be7 {[%clk 0:00:10.8]} 23.
Nf7 {[%clk 0:01:31.1]} 23... b5 {[%clk 0:00:10.7]} 24. Rad1 {[%clk 0:01:24]}
24... c5 {[%clk 0:00:10.9]} 25. Rd3 {[%clk 0:01:24.6]} 25... Bb7 {[%clk
0:00:12.1]} 26. Rf4 {[%clk 0:01:12.8]} 1-0

[Event "*** Titled Tuesday Blitz"]
[Site "Chess.com"]
[Date "2018.11.06"]
[Round "7"]
[White "mc4chess"]
[Black "GhostOfGreenval"]
[Result "1/2-1/2"]
[WhiteElo "2513"]
[BlackElo "2699"]
[TimeControl "180+2"]
[EndTime "14:34:56 PST"]
[Termination "Game drawn by repetition"]

1. Nf3 {[%clk 0:03:01.9]} 1... Nf6 {[%clk 0:02:55.5]} 2. c4 {[%clk 0:03:00.4]}
2... e6 {[%clk 0:02:56.6]} 3. Nc3 {[%clk 0:02:59.7]} 3... a6 {[%clk 0:02:56.2]}
4. e4 {[%clk 0:02:59.9]} 4... d5 {[%clk 0:02:51.1]} 5. e5 {[%clk 0:03:00.7]}
5... Ne4 {[%clk 0:02:52.5]} 6. cxd5 {[%clk 0:02:45.8]} 6... exd5 {[%clk
0:02:51.5]} 7. Nxe4 {[%clk 0:02:46.1]} 7... dxe4 {[%clk 0:02:52.4]} 8. Qa4+
{[%clk 0:02:47.7]} 8... Bd7 {[%clk 0:02:48.8]} 9. Qxe4 {[%clk 0:02:48.7]} 9...
Bc6 {[%clk 0:02:48.8]} 10. Qf4 {[%clk 0:02:45.6]} 10... Bc5 {[%clk 0:02:43.5]}
11. Bc4 {[%clk 0:02:43.8]} 11... O-O {[%clk 0:02:42.3]} 12. O-O {[%clk
0:02:36.8]} 12... Bd5 {[%clk 0:02:32.8]} 13. Be2 {[%clk 0:02:33.5]} 13... Nc6
{[%clk 0:02:31]} 14. d4 {[%clk 0:02:01.6]} 14... Bxf3 {[%clk 0:02:30.4]} 15.
Bxf3 {[%clk 0:02:01.6]} 15... Nxd4 {[%clk 0:02:31.9]} 16. Be3 {[%clk 0:01:58.8]}
16... Ne6 {[%clk 0:02:16.8]} 17. Qe4 {[%clk 0:01:54.6]} 17... c6 {[%clk
0:02:17.1]} 18. Rfd1 {[%clk 0:01:45.8]} 18... Qb6 {[%clk 0:02:15.4]} 19. Bxc5
{[%clk 0:01:43.1]} 19... Qxc5 {[%clk 0:02:14.3]} 20. Rac1 {[%clk 0:01:34.5]}
20... Qb6 {[%clk 0:02:15.4]} 21. b3 {[%clk 0:01:30.2]} 21... Rad8 {[%clk
0:02:16.9]} 22. h4 {[%clk 0:01:21.2]} 22... Rxd1+ {[%clk 0:02:12.6]} 23. Rxd1
{[%clk 0:01:23.1]} 23... Rd8 {[%clk 0:02:14]} 24. g3 {[%clk 0:00:19.9]} 24...
Rxd1+ {[%clk 0:02:04.3]} 25. Bxd1 {[%clk 0:00:21.8]} 25... g6 {[%clk 0:01:57.5]}
26. Bg4 {[%clk 0:00:21.7]} 26... Qa5 {[%clk 0:01:36.7]} 27. Bxe6 {[%clk
0:00:20.5]} 27... fxe6 {[%clk 0:01:38.6]} 28. a4 {[%clk 0:00:18.8]} 28... Qc3
{[%clk 0:01:35.7]} 29. b4 {[%clk 0:00:16.1]} 29... Qa1+ {[%clk 0:01:32.1]} 30.
Kg2 {[%clk 0:00:17.4]} 30... Qxa4 {[%clk 0:01:31.3]} 31. Qd4 {[%clk 0:00:16.2]}
31... Qb3 {[%clk 0:01:24.7]} 32. Qd8+ {[%clk 0:00:16.6]} 32... Kg7 {[%clk
0:01:25.5]} 33. Qe7+ {[%clk 0:00:17.7]} 33... Kg8 {[%clk 0:01:25.4]} 34. Qe8+
{[%clk 0:00:18.5]} 34... Kg7 {[%clk 0:01:26.7]} 35. Qe7+ {[%clk 0:00:20]} 35...
Kg8 {[%clk 0:01:28]} 36. Qe8+ {[%clk 0:00:21.5]} 36... Kg7 {[%clk 0:01:29.2]}
37. Qe7+ {[%clk 0:00:21.9]} 1/2-1/2

[Event "*** Titled Tuesday Blitz"]
[Site "Chess.com"]
[Date "2018.11.06"]
[Round "7"]
[White "ddtru"]
[Black "ViktorMatviishen"]
[Result "0-1"]
[WhiteElo "2307"]
[BlackElo "2478"]
[TimeControl "180+2"]
[EndTime "14:35:08 PST"]
[Termination "ViktorMatviishen won by resignation"]

1. d4 {[%clk 0:03:01.9]} 1... Nf6 {[%clk 0:02:59.9]} 2. Nf3 {[%clk 0:03:02.7]}
2... e6 {[%clk 0:03:01.1]} 3. g3 {[%clk 0:03:02]} 3... d5 {[%clk 0:03:01.6]} 4.
Bg2 {[%clk 0:03:02.8]} 4... Be7 {[%clk 0:03:02]} 5. O-O {[%clk 0:03:03.2]} 5...
O-O {[%clk 0:03:03.1]} 6. c4 {[%clk 0:03:04.2]} 6... c6 {[%clk 0:03:03.2]} 7. b3
{[%clk 0:03:01.9]} 7... a5 {[%clk 0:03:03.2]} 8. Bb2 {[%clk 0:03:02.8]} 8... Na6
{[%clk 0:03:03.7]} 9. Nc3 {[%clk 0:03:02.9]} 9... Rb8 {[%clk 0:02:57.4]} 10. Rc1
{[%clk 0:02:50]} 10... b5 {[%clk 0:02:57.8]} 11. Ne5 {[%clk 0:02:50.9]} 11...
Qe8 {[%clk 0:02:50.6]} 12. c5 {[%clk 0:02:45.1]} 12... Bb7 {[%clk 0:02:47]} 13.
e4 {[%clk 0:02:40.7]} 13... b4 {[%clk 0:02:44.1]} 14. Na4 {[%clk 0:02:22.8]}
14... dxe4 {[%clk 0:02:44.7]} 15. g4 {[%clk 0:02:17.4]} 15... h6 {[%clk
0:02:38.6]} 16. Nb6 {[%clk 0:02:10]} 16... Nc7 {[%clk 0:02:37.2]} 17. a3 {[%clk
0:02:06.9]} 17... Ncd5 {[%clk 0:02:36.6]} 18. axb4 {[%clk 0:02:07]} 18... axb4
{[%clk 0:02:34.5]} 19. Nbc4 {[%clk 0:01:58]} 19... Nf4 {[%clk 0:02:35.1]} 20.
Qd2 {[%clk 0:01:52]} 20... Nxg2 {[%clk 0:02:35.9]} 21. Kxg2 {[%clk 0:01:52.7]}
21... Nd5 {[%clk 0:02:34.9]} 22. f3 {[%clk 0:01:40.8]} 22... Bg5 {[%clk
0:02:32.8]} 23. f4 {[%clk 0:01:39.3]} 23... Bxf4 {[%clk 0:02:29.2]} 24. Rxf4
{[%clk 0:01:39.6]} 24... e3 {[%clk 0:02:30]} 25. Nxe3 {[%clk 0:01:32.3]} 25...
Nxf4+ {[%clk 0:02:31.1]} 26. Kg3 {[%clk 0:01:28.5]} 26... Nd5 {[%clk 0:02:24.8]}
27. N3c4 {[%clk 0:01:29]} 27... Qe7 {[%clk 0:02:21.9]} 28. h4 {[%clk 0:01:22.2]}
28... f5 {[%clk 0:02:15.3]} 29. Nd6 {[%clk 0:01:14.9]} 29... f4+ {[%clk
0:02:02.9]} 30. Kh3 {[%clk 0:01:15]} 30... f3 {[%clk 0:02:03.1]} 31. Rf1 {[%clk
0:01:08]} 31... Ba6 {[%clk 0:01:58.7]} 32. Rxf3 {[%clk 0:00:57.2]} 32... Rxf3+
{[%clk 0:01:58.1]} 33. Nxf3 {[%clk 0:00:58]} 33... Rf8 {[%clk 0:01:59.9]} 34.
Kg3 {[%clk 0:00:50.2]} 34... Qf6 {[%clk 0:01:55.4]} 35. Ne5 {[%clk 0:00:43.4]}
35... Qf1 {[%clk 0:01:50.6]} 36. Ne4 {[%clk 0:00:21.5]} 36... Qg1+ {[%clk
0:01:45.9]} 37. Qg2 {[%clk 0:00:17.5]} 37... Qe1+ {[%clk 0:01:41.1]} 38. Nf2
{[%clk 0:00:17.1]} 38... Qe3+ {[%clk 0:01:39]} 39. Nf3 {[%clk 0:00:13.1]} 39...
Qf4+ {[%clk 0:01:40]} 0-1

[Event "*** Titled Tuesday Blitz"]
[Site "Chess.com"]
[Date "2018.11.06"]
[Round "7"]
[White "vugarrasulov"]
[Black "Koksik_13"]
[Result "0-1"]
[WhiteElo "2780"]
[BlackElo "2729"]
[TimeControl "180+2"]
[EndTime "14:35:09 PST"]
[Termination "Koksik_13 won by checkmate"]

1. e4 {[%clk 0:03:01.9]} 1... e6 {[%clk 0:02:57.5]} 2. d4 {[%clk 0:03:02.2]}
2... d5 {[%clk 0:02:58.9]} 3. Nd2 {[%clk 0:03:03.8]} 3... Nf6 {[%clk 0:02:59.4]}
4. e5 {[%clk 0:03:04.9]} 4... Nfd7 {[%clk 0:03:00.6]} 5. Bd3 {[%clk 0:03:06.5]}
5... c5 {[%clk 0:03:02]} 6. c3 {[%clk 0:03:08.1]} 6... Nc6 {[%clk 0:03:03.5]} 7.
Ne2 {[%clk 0:03:09.8]} 7... cxd4 {[%clk 0:03:04]} 8. cxd4 {[%clk 0:03:11.7]}
8... f6 {[%clk 0:03:05.6]} 9. exf6 {[%clk 0:03:13.6]} 9... Qxf6 {[%clk
0:03:06.8]} 10. Nf3 {[%clk 0:03:14.3]} 10... h6 {[%clk 0:03:08]} 11. Qc2 {[%clk
0:03:15.8]} 11... Bd6 {[%clk 0:03:09]} 12. Bg6+ {[%clk 0:03:15.8]} 12... Ke7
{[%clk 0:03:10.4]} 13. O-O {[%clk 0:03:16.8]} 13... Rd8 {[%clk 0:03:11.2]} 14.
Bd2 {[%clk 0:03:15.6]} 14... Kf8 {[%clk 0:03:11.5]} 15. Bc3 {[%clk 0:03:15.7]}
15... Kg8 {[%clk 0:03:12.4]} 16. Ng3 {[%clk 0:03:16.2]} 16... Nf8 {[%clk
0:03:13.2]} 17. Bd3 {[%clk 0:03:16.9]} 17... Bd7 {[%clk 0:03:13.6]} 18. Rae1
{[%clk 0:03:16.2]} 18... Rac8 {[%clk 0:03:14.7]} 19. Qb1 {[%clk 0:02:58.9]}
19... Be8 {[%clk 0:03:15.1]} 20. Ne5 {[%clk 0:02:59]} 20... Nb4 {[%clk 0:02:56]}
21. f4 {[%clk 0:02:53.9]} 21... Nxd3 {[%clk 0:02:52.7]} 22. Qxd3 {[%clk
0:02:55.8]} 22... Ng6 {[%clk 0:02:49.7]} 23. f5 {[%clk 0:02:52.8]} 23... Nxe5
{[%clk 0:02:41.6]} 24. dxe5 {[%clk 0:02:54.7]} 24... Bc5+ {[%clk 0:02:42]} 25.
Kh1 {[%clk 0:02:53.8]} 25... Qf7 {[%clk 0:02:35.9]} 26. f6 {[%clk 0:02:46.5]}
26... g5 {[%clk 0:02:34.5]} 27. Bd4 {[%clk 0:02:40]} 27... Bb5 {[%clk
0:02:25.3]} 28. Qxb5 {[%clk 0:02:39.5]} 28... Bxd4 {[%clk 0:02:26.1]} 29. Qe2
{[%clk 0:02:18.6]} 29... Rc6 {[%clk 0:02:17.3]} 30. Rd1 {[%clk 0:02:17.4]} 30...
Bb6 {[%clk 0:02:14.9]} 31. Nh5 {[%clk 0:02:15.1]} 31... Rdc8 {[%clk 0:02:10.1]}
32. Ng7 {[%clk 0:02:16.3]} 32... Bc5 {[%clk 0:01:59.5]} 33. Qg4 {[%clk
0:02:12.9]} 33... Bf8 {[%clk 0:01:56.5]} 34. h3 {[%clk 0:02:07.7]} 34... Bxg7
{[%clk 0:01:53.3]} 35. fxg7 {[%clk 0:02:09.6]} 35... Qxg7 {[%clk 0:01:53.3]} 36.
Rf6 {[%clk 0:02:11.2]} 36... Rf8 {[%clk 0:01:45.9]} 37. Rdf1 {[%clk 0:02:10.6]}
37... Rxf6 {[%clk 0:01:25.4]} 38. Rxf6 {[%clk 0:02:11.5]} 38... Qc7 {[%clk
0:00:49.6]} 39. Qg3 {[%clk 0:02:04.8]} 39... Rc1+ {[%clk 0:00:41.3]} 40. Kh2
{[%clk 0:02:05.6]} 40... Qc5 {[%clk 0:00:41.1]} 41. Qf3 {[%clk 0:01:37.5]} 41...
Qg1+ {[%clk 0:00:33]} 42. Kg3 {[%clk 0:01:38.8]} 42... Qe1+ {[%clk 0:00:33.7]}
43. Kg4 {[%clk 0:01:40.3]} 43... Qh4# {[%clk 0:00:32]} 0-1

[Event "*** Titled Tuesday Blitz"]
[Site "Chess.com"]
[Date "2018.11.06"]
[Round "7"]
[White "nearestway"]
[Black "Fy_Rakotomaharo"]
[Result "1-0"]
[WhiteElo "2537"]
[BlackElo "2407"]
[TimeControl "180+2"]
[EndTime "14:35:12 PST"]
[Termination "nearestway won by resignation"]

1. Nf3 {[%clk 0:03:01.9]} 1... Nf6 {[%clk 0:03:00.4]} 2. c4 {[%clk 0:03:02.4]}
2... g6 {[%clk 0:03:00.1]} 3. Nc3 {[%clk 0:03:03.2]} 3... Bg7 {[%clk 0:03:00.5]}
4. e4 {[%clk 0:03:03.9]} 4... d6 {[%clk 0:03:01.8]} 5. d4 {[%clk 0:03:04.6]}
5... O-O {[%clk 0:03:02.8]} 6. Be2 {[%clk 0:03:05.4]} 6... e5 {[%clk 0:03:03.1]}
7. d5 {[%clk 0:03:06.2]} 7... a5 {[%clk 0:03:03.1]} 8. Bg5 {[%clk 0:03:06.1]}
8... h6 {[%clk 0:03:00]} 9. Be3 {[%clk 0:03:06.8]} 9... Ng4 {[%clk 0:02:59.5]}
10. Bd2 {[%clk 0:03:07.3]} 10... f5 {[%clk 0:03:00.1]} 11. h3 {[%clk 0:03:05.2]}
11... Nf6 {[%clk 0:02:59.6]} 12. exf5 {[%clk 0:03:06.1]} 12... gxf5 {[%clk
0:02:57.2]} 13. Qc1 {[%clk 0:03:07.6]} 13... Kh7 {[%clk 0:02:46.5]} 14. g4
{[%clk 0:03:07.2]} 14... e4 {[%clk 0:02:05.6]} 15. Nd4 {[%clk 0:03:05.7]} 15...
c5 {[%clk 0:02:03.6]} 16. Nxf5 {[%clk 0:03:03.6]} 16... Bxf5 {[%clk 0:02:04]}
17. gxf5 {[%clk 0:03:05.5]} 17... Nbd7 {[%clk 0:01:59.4]} 18. Rg1 {[%clk
0:03:02.4]} 18... Qe7 {[%clk 0:01:44.9]} 19. Be3 {[%clk 0:02:57.2]} 19... a4
{[%clk 0:01:29.6]} 20. a3 {[%clk 0:02:55.7]} 20... Qe5 {[%clk 0:00:59.4]} 21.
Rxg7+ {[%clk 0:02:40.9]} 21... Kxg7 {[%clk 0:00:58.4]} 22. Bxh6+ {[%clk
0:02:41.9]} 22... Kf7 {[%clk 0:00:58.5]} 23. Bxf8 {[%clk 0:02:41.4]} 23... Rxf8
{[%clk 0:01:00.4]} 24. Qe3 {[%clk 0:02:34.6]} 24... b5 {[%clk 0:00:34.8]} 25.
cxb5 {[%clk 0:02:31.6]} 25... Nb6 {[%clk 0:00:28.5]} 26. Qg3 {[%clk 0:02:25.5]}
26... Qxf5 {[%clk 0:00:13.8]} 27. Qxd6 {[%clk 0:02:22.7]} 27... Nbd7 {[%clk
0:00:12.9]} 28. b6 {[%clk 0:02:13.9]} 28... Qxh3 {[%clk 0:00:13]} 29. O-O-O
{[%clk 0:02:08.9]} 29... e3 {[%clk 0:00:13.9]} 30. fxe3 {[%clk 0:02:06.6]} 30...
Qxe3+ {[%clk 0:00:14.4]} 31. Kb1 {[%clk 0:02:06.7]} 31... Rb8 {[%clk 0:00:15.2]}
32. Bh5+ {[%clk 0:02:03.4]} 32... Kg7 {[%clk 0:00:12.9]} 33. Nxa4 {[%clk
0:01:58.9]} 33... Qe4+ {[%clk 0:00:12.4]} 34. Ka2 {[%clk 0:01:56.5]} 34... Qxa4
{[%clk 0:00:12.5]} 35. Rg1+ {[%clk 0:01:53.7]} 35... Kh8 {[%clk 0:00:13.7]} 36.
Qh2 {[%clk 0:01:50.1]} 36... Nh7 {[%clk 0:00:10]} 37. Bg6 {[%clk 0:01:43.1]}
37... Nf8 {[%clk 0:00:10.1]} 38. Bxh7 {[%clk 0:01:42.8]} 1-0